fUSD/lending_fUSD_20240427
["ID","MTS","AMOUNT","RATE_DAILY","PERIOD"]
[323737384,1714225175242,-2000.0,0.00024925,30]
[323737385,1714225175266,-2000.0,0.00024925,30]
[323737386,1714225175289,-2000.0,0.00024925,30]
[323737387,1714225175311,-2000.0,0.00024925,30]
[323737388,1714225175334,-2000.0,0.00024925,30]
[323737389,1714225175360,-2000.0,0.00024925,30]
[323737390,1714225175384,-2000.0,0.00024925,30]
[323737391,1714225175407,-2289.54992848,0.00024925,30]
[323737392,1714225175431,-186.18127458,0.00024925,120]
[323737393,1714225175453,-221.91,0.00024925,90]
[323737394,1714225175476,-347.0,0.00024925,120]
[323737395,1714225175500,-582.03732924,0.00024925,120]
[323737396,1714225175524,-1704.3,0.00024925,30]
[323737397,1714225175546,-312.3,0.00024925,30]
[323737398,1714225175569,-312.299999,0.00024925,30]
[323737399,1714225175592,-312.299999,0.00024925,30]
[323737400,1714225175615,-312.299999,0.00024925,30]
[323737401,1714225175640,-200.0,0.00024925,30]
[323737402,1714225175663,-295.193517,0.00024925,30]
[323737403,1714225175685,-953.43607,0.00024925,30]
[323737404,1714225175708,-1000.0,0.00024925,30]
[323737405,1714225175731,-1000.0,0.00024925,30]
[323737406,1714225175754,-1000.0,0.00024925,30]
[323737407,1714225175777,-1000.0,0.00024925,30]
[323737408,1714225175801,-1000.0,0.00024925,30]
[323737409,1714225175823,-1000.0,0.00024925,30]
[323737410,1714225175845,-1000.0,0.00024925,30]
[323737411,1714225175868,-1000.0,0.00024925,30]
[323737412,1714225175890,-1000.0,0.00024925,30]
[323737413,1714225175914,-1000.0,0.00024925,30]
[323737414,1714225175936,-1000.0,0.00024925,30]
[323737415,1714225175959,-1000.0,0.00024925,30]
[323737416,1714225175981,-1000.0,0.00024925,30]
[323737417,1714225176004,-1000.0,0.00024925,30]
[323737418,1714225176027,-1000.0,0.00024925,30]
[323737419,1714225176050,-1000.0,0.00024925,30]
[323737420,1714225176074,-1000.0,0.00024925,30]
[323737421,1714225176097,-1000.0,0.00024925,30]
[323737422,1714225176119,-1000.0,0.00024925,30]
[323737423,1714225176142,-1000.0,0.00024925,30]
[323737424,1714225176166,-1000.0,0.00024925,30]
[323737425,1714225176188,-1000.0,0.00024925,30]
[323737426,1714225176211,-1000.0,0.00024925,30]
[323737427,1714225176235,-1000.0,0.00024925,30]
[323737428,1714225176258,-1000.0,0.00024925,30]
[323737429,1714225176280,-1000.0,0.00024925,30]
[323737430,1714225176303,-1000.0,0.00024925,30]
[323737431,1714225177845,-1711.801678,0.00024925,30]
[323737432,1714225188555,-492.35368866,0.00035,120]
[323737433,1714225188584,-739691.62342834,0.000369,30]
[323737434,1714225188609,-284.11247908,0.00036999,120]
[323737435,1714225188638,-864.86,0.00037,120]
[323737436,1714225188662,-256.18106114,0.00037,30]
[323737437,1714225188699,-16081.16363831,0.00037,30]
[323737438,1714225188722,-100000.0,0.00037,30]
[323737439,1714225188746,-2000.0,0.00037,32]
[323737440,1714225188774,-40329.70570447,0.00037,90]
[323737441,1714225193894,-950.0,0.00035,35]
[323737442,1714225193925,-34670.29429553,0.00037,90]
[323737443,1714225193950,-10808.2681851,0.00037,120]
[323737444,1714225193974,-950.0,0.00037,37]
[323737445,1714225193998,-21213.57884787,0.00037,120]
[323737446,1714225194026,-80000.0,0.00037,60]
[323737447,1714225194052,-5024.0,0.00037,60]
[323737448,1714225194081,-100764.05511187,0.00037,30]
[323737449,1714225194107,-1843.02760467,0.00037035,40]
[323737450,1714225194133,-1812.6878421,0.00037035,40]
[323737451,1714225194160,-360.71193878,0.00037035,40]
[323737452,1714225194184,-1922.01372652,0.00037035,35]
[323737453,1714225194208,-25000.0,0.00037035,40]
[323737454,1714225194234,-11719.22331765,0.00037035,40]
[323737455,1714225194257,-357.17711354,0.00037035,40]
[323737456,1714225194281,-150394.89642293,0.000371,30]
[323737457,1714225194306,-1000.0,0.000373,30]
[323737458,1714225194333,-1000.0,0.000373,30]
[323737459,1714225194358,-1000.0,0.000373,30]
[323737460,1714225194383,-1000.0,0.000373,30]
[323737461,1714225194406,-1000.0,0.000373,30]
[323737462,1714225194429,-1000.0,0.000373,30]
[323737463,1714225194451,-1000.0,0.000373,30]
[323737464,1714225194474,-1000.0,0.000373,30]
[323737465,1714225194496,-1000.0,0.000373,30]
[323737466,1714225194519,-1000.0,0.000373,30]
[323737467,1714225194542,-1000.0,0.000373,30]
[323737468,1714225194565,-1000.0,0.000373,30]
[323737469,1714225194588,-1000.0,0.000373,30]
[323737470,1714225194611,-349.79,0.000373,30]
[323737471,1714225194634,-200.0,0.000375,30]
[323737472,1714225194658,-534.8051556,0.000375,30]
[323737473,1714225194682,-1000.0,0.000375,30]
[323737474,1714225194707,-1000.0,0.000375,30]
[323737475,1714225194730,-1000.0,0.000375,30]
[323737476,1714225194754,-1000.0,0.000375,30]
[323737477,1714225194783,-1000.0,0.000375,30]
[323737478,1714225194806,-1000.0,0.000375,30]
[323737479,1714225194831,-1000.0,0.000375,30]
[323737480,1714225194854,-926.9,0.000375,30]
[323737481,1714225194877,-39267.05546142,0.000375,60]
[323737482,1714225194903,-498.10271194,0.00037649,30]
[323737483,1714225194927,-150.69054634,0.00037654,30]
[323737484,1714225194953,-210.69077042,0.00037657,30]
[323737485,1714225194978,-210.69077042,0.00037661,30]
[323737486,1714225195004,-355.52761595,0.00037669,30]
[323737487,1714225195030,-311.41306236,0.00037674,30]
[323737488,1714225195055,-355.52761595,0.00037674,30]
[323737489,1714225195082,-678.37152784,0.00037677,30]
[323737490,1714225195110,-3723.32074495,0.00037681,30]
[323737491,1714225195137,-51336.45975915,0.00037691,30]
[323737492,1714225195164,-51336.45975915,0.00037696,30]
[323737493,1714225195190,-210.69077042,0.00037697,30]
[323737494,1714225195215,-311.41306236,0.000377,30]
[323737495,1714225195242,-3723.32074495,0.00037706,30]
[323737496,1714225195268,-355.52761595,0.00037708,30]
[323737497,1714225195296,-48906.51421355,0.00037711,30]
[323737498,1714225195323,-498.10271194,0.00037719,30]
[323737499,1714225195350,-678.37152784,0.00037722,30]
[323737500,1714225195378,-150.69054634,0.00037736,30]
[323737501,1714225195405,-51336.45975915,0.00037742,30]
[323737502,1714225195432,-498.10271194,0.00037748,30]
[323737503,1714225195460,-48906.51421355,0.0003775,30]
[323737504,1714225195484,-311.41306236,0.00037758,30]
[323737505,1714225195510,-4865.97797999,0.0003776,30]
[323737506,1714225195537,-48906.51421355,0.0003776,30]
[323737507,1714225195561,-678.37152784,0.00037769,30]
[323737508,1714225195589,-4865.97797999,0.00037769,30]
[323737509,1714225195614,-3723.32074495,0.0003777,30]
[323737510,1714225195637,-3257.0,0.00037777,120]
[323737511,1714225195660,-150.69054634,0.0003778,30]
[323737512,1714225195683,-4865.97797999,0.00037791,30]
[323737513,1714225195709,-160.0,0.000379,120]
[323737514,1714225195732,-2640.0,0.00037989,41]
[323737515,1714225195756,-51763.30817895,0.00037992,30]
[323737516,1714225199892,-42352.50137509,0.00035,30]
[323737517,1714225199923,-857647.49862491,0.00037992,30]
[323737518,1714225203197,-926.91845671,0.00033,33]
[323737519,1714225203228,-492.35368866,0.00035,120]
[323737520,1714225203256,-898580.72785463,0.00037992,30]
[323737521,1714225207191,-900000.0,0.00037992,30]
[323737522,1714225212716,-119644.17223605,0.00037998,120]
[323737523,1714225212740,-3000.0,0.00038,120]
[323737524,1714225212762,-60345.42163328,0.00038,30]
[323737525,1714225212786,-10000.0,0.00038,120]
[323737526,1714225212808,-317.0,0.00038,120]
[323737527,1714225212830,-6004.19,0.00038,30]
[323737528,1714225212854,-143660.25409861,0.00038,30]
[323737529,1714225212877,-100000.0,0.00038,30]
[323737530,1714225212902,-2069.0,0.00038,120]
[323737531,1714225212924,-11899.20363338,0.00038,120]
[323737532,1714225212946,-315.62118499,0.00038,30]
[323737533,1714225212969,-502.82296961,0.00038,120]
[323737534,1714225212992,-2161.18779354,0.00038,30]
[323737535,1714225213014,-80000.0,0.00038,90]
[323737536,1714225213038,-683.87,0.00038,30]
[323737537,1714225213062,-9953.73599327,0.000382,30]
[323737538,1714225213089,-1524.50154576,0.000384,33]
[323737539,1714225213113,-178.41828489,0.000384,33]
[323737540,1714225213135,-1259.03353942,0.000389,30]
[323737541,1714225213159,-1026.9,0.000389,60]
[323737542,1714225213182,-1000.0,0.0003899,30]
[323737543,1714225213204,-2100.0,0.00039,30]
[323737544,1714225213226,-950.0,0.00039,45]
[323737545,1714225213249,-2000.0,0.00039,30]
[323737546,1714225213271,-1000.0,0.00039,30]
[323737547,1714225213295,-1000.0,0.00039,120]
[323737548,1714225213318,-1431.42334786,0.00039,30]
[323737549,1714225213340,-636.45826658,0.00039,30]
[323737550,1714225213363,-80000.0,0.00039,120]
[323737551,1714225213386,-500000.0,0.000394,120]
[323737552,1714225213409,-30693.75271536,0.0003949,30]
[323737553,1714225213432,-1000000.0,0.0003969,30]
[323737554,1714225213455,-320.55116871,0.000397,60]
[323737555,1714225213478,-500000.0,0.000398,120]
[323737556,1714225213500,-858.34781727,0.000399,48]
[323737557,1714225213522,-858.34781722,0.000399,48]
[323737558,1714225213546,-858.34781722,0.000399,48]
[323737559,1714225213568,-858.34781722,0.000399,48]
[323737560,1714225213590,-858.34781722,0.000399,48]
[323737561,1714225213612,-858.34781722,0.000399,48]
[323737562,1714225213634,-858.34781722,0.000399,48]
[323737563,1714225213657,-858.34781722,0.000399,48]
[323737564,1714225213680,-858.34781722,0.000399,48]
[323737565,1714225213702,-858.34781722,0.000399,48]
[323737566,1714225213725,-1200.0,0.00039998,60]
[323737567,1714225213748,-164.49313047,0.00039999,30]
[323737568,1714225213771,-158.64832672,0.0004,30]
[323737569,1714225213794,-1369.81873954,0.0004,120]
[323737570,1714225213816,-2000.0,0.0004,60]
[323737571,1714225213838,-2526.0,0.0004,30]
[323737572,1714225213860,-16638.98390076,0.0004,60]
[323737573,1714225213883,-10000.0,0.0004,55]
[323737574,1714225213905,-10000.0,0.0004,50]
[323737575,1714225213927,-10000.0,0.0004,45]
[323737576,1714225213949,-10000.0,0.0004,40]
[323737577,1714225213972,-10000.0,0.0004,35]
[323737578,1714225213994,-10000.0,0.0004,30]
[323737579,1714225214017,-2063.0,0.0004,120]
[323737580,1714225214040,-500.0,0.0004,60]
[323737581,1714225214063,-1000.0,0.0004,30]
[323737582,1714225214087,-1890.0,0.0004,30]
[323737583,1714225214110,-1000.0,0.0004,120]
[323737584,1714225214132,-2000.0,0.0004,30]
[323737585,1714225214344,-300.0,0.0004,30]
[323737586,1714225214369,-300.0,0.0004,30]
[323737587,1714225214393,-200.0,0.0004,30]
[323737588,1714225214416,-200.0,0.0004,30]
[323737589,1714225214438,-221.44273407,0.0004,30]
[323737590,1714225214460,-1000.0,0.0004,120]
[323737591,1714225214482,-1000.0,0.0004,120]
[323737592,1714225214505,-10000.0,0.0004,120]
[323737593,1714225214528,-1716.01626885,0.0004,60]
[323737594,1714225214551,-475.96045384,0.0004,30]
[323737595,1714225214574,-10000.0,0.0004,60]
[323737596,1714225214598,-7842.6448691,0.0004,30]
[323737597,1714225214621,-1900.0,0.0004,60]
[323737598,1714225214645,-88071.99499309,0.0004,30]
[323737599,1714225219695,-911928.00500691,0.0004,30]
[323737600,1714225219722,-65224.731034,0.0004,60]
[323737601,1714225219745,-2021.52470051,0.0004,30]
[323737602,1714225219772,-980.05590235,0.0004,100]
[323737603,1714225219798,-602.0,0.0004,60]
[323737604,1714225219821,-176.04,0.0004,30]
[323737605,1714225219846,-1021.89647562,0.0004,30]
[323737606,1714225219869,-5325.0,0.0004,120]
[323737607,1714225219894,-10656.03499911,0.0004,30]
[323737608,1714225219921,-545.94183124,0.0004,120]
[323737609,1714225219945,-918.28287406,0.0004,30]
[323737610,1714225219970,-27953.39212811,0.0004,30]
[323737611,1714225219994,-776888.99369526,0.0004,30]
[323737612,1714225220019,-1095758.10135283,0.0004,30]
[323737614,1714225223586,-492.35368866,0.00037992,120]
[323737615,1714225223609,-1166.03853466,0.00037992,90]
[323737616,1714225223639,-1138306.146178,0.0004,30]
[323737617,1714225223661,-1000.0,0.0004,120]
[323737618,1714225223684,-290.27096231,0.0004,30]
[323737619,1714225223706,-316.75914762,0.0004,30]
[323737620,1714225223728,-1042.63029555,0.0004,30]
[323737621,1714225223750,-723.50167395,0.0004,30]
[323737623,1714225223772,-1067.8,0.0004,120]
[323737624,1714225223795,-1610.0,0.0004,120]
[323737625,1714225223818,-220.0,0.0004,120]
[323737626,1714225223841,-69382.03,0.0004,30]
[323737627,1714225223864,-183.92398148,0.0004,30]
[323737628,1714225223886,-468.08401485,0.0004,120]
[323737629,1714225223908,-196.0,0.0004,30]
[323737630,1714225223932,-5518.18,0.0004,31]
[323737631,1714225223954,-2000.0,0.00040073,120]
[323737632,1714225223979,-907.97402,0.00040088,30]
[323737633,1714225224003,-9953.73599327,0.000402,30]
[323737634,1714225224027,-907.97402,0.00040288,30]
[323737635,1714225224052,-5526.4,0.00040327,79]
[323737636,1714225224076,-907.97402,0.00040488,30]
[323737637,1714225224099,-13448.162455,0.000405,40]
[323737638,1714225224121,-171.69347921,0.000405,30]
[323737639,1714225224144,-907.97402,0.00040688,30]
[323737640,1714225224167,-6033.77654534,0.00040698,31]
[323737641,1714225224189,-1000.0,0.000407,30]
[323737642,1714225224212,-2610.0,0.00040798,50]
[323737643,1714225224234,-5000.0,0.000409,90]
[323737644,1714225224256,-2500.0,0.000409,60]
[323737645,1714225224278,-2500.83332953,0.000409,31]
[323737646,1714225224302,-20000.0,0.000409,30]
[323737647,1714225224325,-883.01975479,0.00040972,120]
[323737648,1714225224348,-68660.95719948,0.00040993,120]
[323737649,1714225224370,-1000.0,0.00040999,120]
[323737650,1714225224393,-100000.0,0.00041,31]
[323737651,1714225224416,-15332.05146117,0.00041,90]
[323737652,1714225224438,-950.0,0.00041,60]
[323737653,1714225224460,-2000.0,0.00041,30]
[323737654,1714225224485,-910.07506173,0.00041,30]
[323737655,1714225224509,-70385.50178251,0.00041,30]
[323737656,1714225224533,-28502.15185674,0.00041,30]
[323737657,1714225224557,-20000.00000099,0.00041,30]
[323737658,1714225224580,-579.52,0.00041,120]
[323737659,1714225224602,-562.8630881,0.00041,30]
[323737660,1714225224625,-7407.99623841,0.00041,120]
[323737661,1714225224647,-1000000.0,0.00041,30]
[323737662,1714225224670,-780.62464493,0.00041,120]
[323737663,1714225224692,-1701.68656751,0.00041,120]
[323737664,1714225224715,-1266.75,0.00041,120]
[323737665,1714225224737,-596.11,0.00041,120]
[323737666,1714225224761,-282120.47598421,0.00041,60]
[323737667,1714225230036,-559.98865894,0.00036092,120]
[323737668,1714225230075,-267.419,0.00040082,30]
[323737669,1714225230100,-588277.62205292,0.00041,60]
[323737670,1714225230125,-907.97402,0.00041088,30]
[323737671,1714225230151,-462.71465242,0.00041095,30]
[323737672,1714225230176,-838.90490775,0.00041095,30]
[323737673,1714225230199,-302.811816,0.00041095,120]
[323737674,1714225230222,-1000.0,0.00041095,120]
[323737675,1714225230248,-1000.0,0.00041095,120]
[323737676,1714225230272,-1000.0,0.00041095,120]
[323737677,1714225230300,-1000.0,0.00041095,120]
[323737678,1714225230323,-1000.0,0.00041095,120]
[323737679,1714225230347,-1000.0,0.00041095,120]
[323737680,1714225230371,-1000.0,0.00041095,120]
[323737681,1714225230393,-1000.0,0.00041095,120]
[323737682,1714225230416,-1000.0,0.00041095,120]
[323737683,1714225230439,-1000.0,0.00041095,120]
[323737684,1714225230462,-1000.0,0.00041095,120]
[323737685,1714225230488,-1000.0,0.00041095,120]
[323737686,1714225230512,-1000.0,0.00041095,120]
[323737687,1714225230536,-638.23801165,0.00041095,120]
[323737688,1714225230563,-1537.15161641,0.00041095,30]
[323737689,1714225230588,-5518.18,0.00041095,33]
[323737690,1714225230613,-185.08331568,0.000411,120]
[323737691,1714225230636,-16083.46818985,0.000411,120]
[323737692,1714225230662,-176.72830543,0.000411,60]
[323737693,1714225230686,-907.97402,0.00041288,30]
[323737694,1714225230710,-907.97402,0.00041488,30]
[323737695,1714225230734,-158.96960026,0.000415,30]
[323737696,1714225230757,-907.97402,0.00041688,30]
[323737697,1714225230781,-723296.66528644,0.0004186,120]
[323737698,1714225230806,-2013.43057244,0.000419,120]
[323737699,1714225230831,-100000.0,0.00042,32]
[323737700,1714225230855,-1443050.72793381,0.00042,30]
[323737710,1714225246578,-1384.00462452,0.0003,60]
[323737711,1714225246628,-492.35368866,0.00037992,120]
[323737712,1714225246653,-1166.03853466,0.00037992,90]
[323737713,1714225246681,-11901.15890535,0.00038,120]
[323737714,1714225246708,-1510.94665205,0.000389,30]
[323737715,1714225246733,-222.4788629,0.00039,30]
[323737716,1714225246766,-412497.64270336,0.00042,30]
[323737717,1714225246790,-16153.87737316,0.00042,120]
[323737718,1714225246814,-1000.0,0.00042,120]
[323737719,1714225246840,-3893.58744193,0.00042,120]
[323737720,1714225246865,-353.31527269,0.00042,120]
[323737721,1714225246889,-30000.0,0.00042,60]
[323737722,1714225246913,-100000.0,0.00042,30]
[323737723,1714225246940,-1000000.0,0.00042,30]
[323737724,1714225246963,-3037.62,0.00042,30]
[323737725,1714225246987,-3883.60273396,0.00042,120]
[323737726,1714225247011,-300.273,0.00042,30]
[323737727,1714225247037,-5518.18,0.00042191,35]
[323737728,1714225247062,-9953.73599327,0.000422,60]
[323737729,1714225247089,-500.0,0.000424,120]
[323737730,1714225247114,-2582.83989244,0.00042478,52]
[323737731,1714225247140,-252.81,0.000425,30]
[323737732,1714225247170,-1000000.0,0.000425,40]
[323737733,1714225247196,-10000.0,0.000428,30]
[323737734,1714225247220,-35524.90384032,0.000429,30]
[323737735,1714225247249,-100000.0,0.00043,33]
[323737736,1714225247274,-3190.0,0.00043,120]
[323737737,1714225247510,-250.0,0.00043,30]
[323737738,1714225247535,-2000.0,0.00043,120]
[323737739,1714225247562,-650.0,0.00043,80]
[323737740,1714225247587,-1000.0,0.00043,30]
[323737741,1714225247615,-260.0,0.00043,30]
[323737742,1714225247640,-140520.63048073,0.00043,40]
[323737751,1714225253801,-859479.36951927,0.00043,40]
[323737752,1714225253826,-178.95,0.00043014,120]
[323737753,1714225253850,-1134.82,0.00043086,39]
[323737754,1714225253873,-5518.18,0.00043287,37]
[323737755,1714225253896,-250.0,0.000435,30]
[323737756,1714225253918,-253.61,0.000435,30]
[323737757,1714225253943,-6028.8,0.00043653,98]
[323737758,1714225253966,-4315.55991214,0.00043684,30]
[323737759,1714225253989,-500.0,0.000438,120]
[323737760,1714225254012,-459.23692379,0.000438,30]
[323737761,1714225254038,-240822.08663958,0.000439,30]
[323737762,1714225254065,-59177.91336043,0.000439,30]
[323737763,1714225254093,-100000.0,0.00044,34]
[323737764,1714225254116,-1000.0,0.00044,120]
[323737765,1714225254140,-950.0,0.00044,90]
[323737766,1714225254163,-250.0,0.00044,30]
[323737767,1714225254187,-1000.0,0.00044,120]
[323737768,1714225254210,-10431.15949933,0.00044,30]
[323737769,1714225254233,-250.0,0.00044,30]
[323737770,1714225254256,-250.0,0.00044,30]
[323737771,1714225254280,-4392.15282135,0.00044,30]
[323737772,1714225254302,-1000000.0,0.00044,40]
[323737773,1714225254541,-5569.17663157,0.00044,120]
[323737774,1714225254566,-1301.006876,0.00044,44]
[323737775,1714225254591,-9953.73599327,0.000442,60]
[323737776,1714225254615,-5518.18,0.00044383,39]
[323737777,1714225254638,-250.0,0.000445,30]
[323737778,1714225254662,-250.0,0.000445,30]
[323737779,1714225254686,-157.21538252,0.000449,120]
[323737780,1714225254709,-1000.0,0.00044999,120]
[323737781,1714225254739,-100000.0,0.00045,35]
[323737782,1714225254763,-150.0,0.00045,85]
[323737783,1714225254787,-363365.70766638,0.00045,30]
[323737784,1714225254811,-250.0,0.00045,30]
[323737785,1714225254837,-1700.0,0.00045,60]
[323737786,1714225254861,-250000.0,0.00045,70]
[323737787,1714225254885,-97587.0,0.00045,30]
[323737789,1714225254907,-688.0,0.00045,120]
[323737790,1714225254930,-452.999996,0.00045,120]
[323737791,1714225254952,-1800.0,0.00045,60]
[323737792,1714225254975,-170000.0,0.00045,30]
[323737793,1714225254999,-1323.49961968,0.00045,40]
[323737794,1714225255022,-200.0,0.00045,120]
[323737795,1714225255044,-2371.69664773,0.00045,30]
[323737796,1714225255068,-152.15758764,0.00045,120]
[323737797,1714225255096,-589317.78492332,0.00045,30]
[323737801,1714225258275,-546.04384775,0.0004,120]
[323737802,1714225258302,-150.0,0.00043,30]
[323737803,1714225258327,-750274.01162232,0.00045,30]
[323737804,1714225258350,-1000000.0,0.00045,50]
[323737805,1714225258372,-2683.24313852,0.00045,45]
[323737806,1714225258395,-151.0,0.00045,120]
[323737807,1714225258418,-8332.07755352,0.00045,120]
[323737808,1714225258441,-135118.014,0.0004514,30]
[323737809,1714225258464,-187.45,0.0004538,120]
[323737810,1714225258487,-5518.18,0.00045479,41]
[323737811,1714225258510,-250.0,0.000455,60]
[323737812,1714225258532,-250000.0,0.000455,70]
[323737813,1714225258556,-1723.89436727,0.00045533,120]
[323737814,1714225258580,-10000.0,0.000457,30]
[323737815,1714225258604,-1000.0,0.000457,30]
[323737816,1714225258628,-349241.86139266,0.00045888,60]
[323737817,1714225258652,-250000.0,0.000459,70]
[323737818,1714225258676,-100000.0,0.00046,36]
[323737819,1714225258699,-150.0,0.00046,96]
[323737820,1714225258724,-250.0,0.00046,60]
[323737821,1714225258748,-1010.85855536,0.00046,120]
[323737822,1714225258772,-1020.0,0.00046,120]
[323737823,1714225258795,-504.0,0.00046,120]
[323737824,1714225258818,-19300.06965702,0.00046,90]
[323737825,1714225258842,-151.0,0.00046,120]
[323737826,1714225258865,-9953.73599327,0.000462,60]
[323737827,1714225258888,-250000.0,0.000464,70]
[323737828,1714225259107,-10532.28893776,0.000464,90]
[323737829,1714225259133,-10026.0,0.000465,60]
[323737830,1714225259159,-250.0,0.000465,60]
[323737831,1714225259183,-5518.18,0.00046575,43]
[323737832,1714225259208,-250000.0,0.000469,70]
[323737833,1714225259229,-17751.75432461,0.00046922,120]
[323737834,1714225259254,-6531.2,0.0004698,117]
[323737835,1714225259277,-151.0,0.00046986,120]
[323737837,1714225259304,-100000.0,0.00047,37]
[323737838,1714225259328,-200.0,0.00047,108]
[323737839,1714225259351,-250.0,0.00047,60]
[323737840,1714225259376,-1569.0,0.00047,120]
[323737841,1714225259403,-1540.89115627,0.00047,120]
[323737842,1714225259428,-328.0,0.000471,30]
[323737843,1714225259451,-12851.08,0.00047123,120]
[323737844,1714225259474,-250000.0,0.000472,70]
[323737845,1714225259497,-26900.48565124,0.000473,120]
[323737846,1714225259520,-7283.40414574,0.0004748,120]
[323737847,1714225259543,-250.0,0.000475,60]
[323737848,1714225259565,-50551.27565669,0.000475,70]
[323737854,1714225264502,-1384.00462452,0.0003,60]
[323737855,1714225264552,-540.52866758,0.00037992,120]
[323737856,1714225264579,-1166.03853466,0.00037992,90]
[323737857,1714225264605,-11901.15890535,0.00038,120]
[323737858,1714225264631,-1259.12221004,0.000389,30]
[323737859,1714225264668,-98770.72292568,0.000475,70]
[323737860,1714225264692,-10000.0,0.000475,60]
[323737861,1714225264717,-2000.000009,0.000475,30]
[323737862,1714225264742,-5518.18,0.00047671,45]
[323737863,1714225264765,-55433.44436275,0.000478,60]
[323737864,1714225264789,-1500.0,0.00047889,30]
[323737865,1714225264813,-151.0,0.00047973,120]
[323737866,1714225264838,-1000.0,0.00047999,120]
[323737867,1714225264865,-100000.0,0.00048,38]
[323737868,1714225264888,-850.0,0.00048,120]
[323737869,1714225264913,-250.0,0.00048,60]
[323737870,1714225264939,-2437.8,0.00048,120]
[323737871,1714225264964,-1000.0,0.00048,120]
[323737872,1714225264994,-5012.8009148,0.00048,60]
[323737873,1714225265023,-276.59087687,0.00048,120]
[323737874,1714225265289,-151.0,0.00048,120]
[323737875,1714225265314,-19426.7586,0.00048,120]
[323737876,1714225265339,-1034.92096406,0.00048,120]
[323737877,1714225265363,-13254.5459315,0.00048,120]
[323737878,1714225265389,-9953.73599327,0.000482,60]
[323737879,1714225265413,-250.0,0.000485,60]
[323737880,1714225265438,-10000.0,0.000486,30]
[323737881,1714225265462,-1000.0,0.000487,120]
[323737882,1714225265487,-5518.18,0.00048767,47]
[323737883,1714225265510,-151.0,0.00048959,120]
[323737884,1714225265536,-100000.0,0.00049,39]
[323737885,1714225265559,-9481.25535339,0.00049,30]
[323737886,1714225265584,-500.0,0.00049,120]
[323737887,1714225265607,-2430.0,0.00049,120]
[323737888,1714225265631,-250.0,0.00049,60]
[323737889,1714225265655,-2100.0,0.00049,90]
[323737890,1714225265679,-10000.0,0.00049,120]
[323737891,1714225265706,-10000.0,0.00049,120]
[323737892,1714225265729,-4000.0,0.00049,30]
[323737893,1714225265754,-4000.0,0.00049,30]
[323737894,1714225265778,-4000.0,0.00049,30]
[323737895,1714225265803,-4000.0,0.00049,30]
[323737896,1714225265827,-4000.0,0.00049,30]
[323737897,1714225265854,-4000.0,0.00049,30]
[323737898,1714225265878,-4000.0,0.00049,30]
[323737899,1714225265902,-4000.0,0.00049,30]
[323737900,1714225265926,-4000.0,0.00049,30]
[323737901,1714225265951,-50000.0,0.00049,30]
[323737902,1714225265977,-230.42790921,0.00049,60]
[323737903,1714225266001,-194.82972889,0.00049,60]
[323737904,1714225266025,-599.999999,0.00049,30]
[323737905,1714225266049,-948.87977776,0.00049,30]
[323737906,1714225266075,-25244.55587391,0.00049,120]
[323737907,1714225266104,-151.0,0.00049205,120]
[323737908,1714225266128,-4963.162656,0.00049262,120]
[323737909,1714225266156,-350.0,0.00049315,30]
[323737910,1714225266183,-411.0,0.00049315,30]
[323737911,1714225266209,-350.0,0.00049315,30]
[323737912,1714225266233,-350.0,0.00049315,30]